[Event "*** Titled Tuesday Blitz"]
[Site "Chess.com"]
[Date "2021.04.27"]
[Round "5"]
[White "Skat2704"]
[Black "Willhaven3"]
[Result "1-0"]
[WhiteElo "2694"]
[BlackElo "2509"]
[TimeControl "180+1"]
[EndTime "10:54:19 PDT"]
[Termination "Skat2704 won by resignation"]

1. d4 {[%clk 0:03:00.9]} 1... Nf6 {[%clk 0:02:59.3]} 2. c4 {[%clk 0:03:00.4]}
2... e6 {[%clk 0:02:59.1]} 3. Nf3 {[%clk 0:02:58.9]} 3... d5 {[%clk 0:02:58.1]}
4. Nc3 {[%clk 0:02:57.4]} 4... dxc4 {[%clk 0:02:58]} 5. e3 {[%clk 0:02:56.4]}
5... a6 {[%clk 0:02:57.4]} 6. Bxc4 {[%clk 0:02:55.5]} 6... b5 {[%clk 0:02:57.3]}
7. Be2 {[%clk 0:02:54.4]} 7... Bb7 {[%clk 0:02:55.4]} 8. O-O {[%clk 0:02:53]}
8... Nbd7 {[%clk 0:02:55]} 9. b3 {[%clk 0:02:51.6]} 9... c5 {[%clk 0:02:54.8]}
10. Bb2 {[%clk 0:02:50.6]} 10... Qb8 {[%clk 0:02:51]} 11. Rc1 {[%clk 0:02:48.4]}
11... Bd6 {[%clk 0:02:50]} 12. h3 {[%clk 0:02:45.8]} 12... O-O {[%clk
0:02:49.3]} 13. dxc5 {[%clk 0:02:43.6]} 13... Nxc5 {[%clk 0:02:47.7]} 14. b4
{[%clk 0:02:43.6]} 14... Nce4 {[%clk 0:02:45.5]} 15. Nxe4 {[%clk 0:02:43.6]}
15... Nxe4 {[%clk 0:02:46.4]} 16. Bd3 {[%clk 0:02:40.8]} 16... Rd8 {[%clk
0:02:40.8]} 17. a3 {[%clk 0:02:34.2]} 17... Bf8 {[%clk 0:02:21.8]} 18. Qe2
{[%clk 0:02:30.6]} 18... Bd5 {[%clk 0:02:18.4]} 19. Nd4 {[%clk 0:02:26.5]} 19...
Qb7 {[%clk 0:02:09.5]} 20. Rfd1 {[%clk 0:02:23.1]} 20... Nd6 {[%clk 0:02:02.2]}
21. f3 {[%clk 0:02:16.5]} 21... Nc4 {[%clk 0:01:57.9]} 22. e4 {[%clk 0:02:14.2]}
22... Nxb2 {[%clk 0:01:44.6]} 23. Qxb2 {[%clk 0:02:11.9]} 23... Qb6 {[%clk
0:01:16.2]} 24. exd5 {[%clk 0:02:09.4]} 24... e5 {[%clk 0:01:16.5]} 25. Bxh7+
{[%clk 0:01:48.8]} 25... Kxh7 {[%clk 0:01:14.1]} 26. Rc6 {[%clk 0:01:49.1]}
26... Qa7 {[%clk 0:01:10.7]} 27. Qc2+ {[%clk 0:01:49.4]} 27... Kg8 {[%clk
0:01:09.9]} 28. Rc7 {[%clk 0:01:49.5]} 28... Qb6 {[%clk 0:01:06.7]} 29. Qc6
{[%clk 0:01:49.5]} 29... Rab8 {[%clk 0:00:42.3]} 30. Qxb6 {[%clk 0:01:45.1]}
30... Rxb6 {[%clk 0:00:43.2]} 31. Nc6 {[%clk 0:01:44.5]} 31... Rd6 {[%clk
0:00:34.6]} 32. Nxe5 {[%clk 0:01:41.3]} 32... Rf6 {[%clk 0:00:29.5]} 33. Nd7
{[%clk 0:01:39.1]} 1-0

[Event "*** Titled Tuesday Blitz"]
[Site "Chess.com"]
[Date "2021.04.27"]
[Round "5"]
[White "1977Ivan"]
[Black "chessflav"]
[Result "1-0"]
[WhiteElo "2648"]
[BlackElo "2275"]
[TimeControl "180+1"]
[EndTime "10:54:19 PDT"]
[Termination "1977Ivan won by checkmate"]

1. d4 {[%clk 0:03:00.9]} 1... g6 {[%clk 0:01:44.5]} 2. e4 {[%clk 0:02:59.5]}
2... Bg7 {[%clk 0:01:44.3]} 3. Nc3 {[%clk 0:03:00]} 3... d6 {[%clk 0:01:44.5]}
4. f4 {[%clk 0:02:59.9]} 4... Nd7 {[%clk 0:01:44.2]} 5. Nf3 {[%clk 0:02:58.2]}
5... c5 {[%clk 0:01:44.6]} 6. Be3 {[%clk 0:02:40]} 6... Nh6 {[%clk 0:01:39.4]}
7. dxc5 {[%clk 0:02:33.4]} 7... Ng4 {[%clk 0:01:35.8]} 8. Bg1 {[%clk 0:02:32.3]}
8... Nxc5 {[%clk 0:01:35.6]} 9. h3 {[%clk 0:02:21.2]} 9... Nf6 {[%clk
0:01:32.9]} 10. Bxc5 {[%clk 0:02:15.6]} 10... dxc5 {[%clk 0:01:33.8]} 11. Qxd8+
{[%clk 0:02:15.8]} 11... Kxd8 {[%clk 0:01:33.9]} 12. O-O-O+ {[%clk 0:02:09.1]}
12... Kc7 {[%clk 0:01:34.3]} 13. e5 {[%clk 0:02:08.3]} 13... Nh5 {[%clk
0:01:34.4]} 14. Nd5+ {[%clk 0:02:07.4]} 14... Kb8 {[%clk 0:01:33.8]} 15. g4
{[%clk 0:01:57.1]} 15... Ng3 {[%clk 0:01:33.5]} 16. Rg1 {[%clk 0:01:57.5]} 16...
Nxf1 {[%clk 0:01:33.4]} 17. Rgxf1 {[%clk 0:01:58.4]} 17... e6 {[%clk 0:01:17.1]}
18. Nf6 {[%clk 0:01:53.8]} 18... Kc7 {[%clk 0:01:02.5]} 19. Ng5 {[%clk 0:01:52]}
19... Bxf6 {[%clk 0:00:47.3]} 20. exf6 {[%clk 0:01:52.9]} 20... Bd7 {[%clk
0:00:47.6]} 21. Nxf7 {[%clk 0:01:51.2]} 21... Rhf8 {[%clk 0:00:47.5]} 22. Ne5
{[%clk 0:01:51.1]} 22... Bb5 {[%clk 0:00:47.2]} 23. c4 {[%clk 0:01:50.1]} 23...
Ba4 {[%clk 0:00:47.3]} 24. b3 {[%clk 0:01:49.4]} 24... Bc6 {[%clk 0:00:44.8]}
25. f7 {[%clk 0:01:45.2]} 25... Bg2 {[%clk 0:00:42.5]} 26. Rd7+ {[%clk
0:01:43.7]} 26... Kb6 {[%clk 0:00:42.2]} 27. Rfd1 {[%clk 0:01:41.9]} 27... Ka5
{[%clk 0:00:34.8]} 28. Kb2 {[%clk 0:01:38.7]} 28... Bxh3 {[%clk 0:00:34.4]} 29.
Rxb7 {[%clk 0:01:34.1]} 29... h5 {[%clk 0:00:32.8]} 30. Rb5+ {[%clk 0:01:30.1]}
30... Ka6 {[%clk 0:00:32]} 31. Rd6# {[%clk 0:01:31]} 1-0

[Event "*** Titled Tuesday Blitz"]
[Site "Chess.com"]
[Date "2021.04.27"]
[Round "5"]
[White "viktorgen2021"]
[Black "Agoking701"]
[Result "0-1"]
[WhiteElo "2379"]
[BlackElo "2263"]
[TimeControl "180+1"]
[EndTime "10:54:21 PDT"]
[Termination "Agoking701 won by resignation"]

1. d4 {[%clk 0:03:00.2]} 1... Nf6 {[%clk 0:02:57.6]} 2. Nf3 {[%clk 0:02:56.9]}
2... g6 {[%clk 0:02:56.2]} 3. c4 {[%clk 0:02:55.8]} 3... Bg7 {[%clk 0:02:55.9]}
4. Nc3 {[%clk 0:02:54.6]} 4... O-O {[%clk 0:02:56]} 5. g3 {[%clk 0:02:53.6]}
5... d6 {[%clk 0:02:53.1]} 6. Bg2 {[%clk 0:02:52.8]} 6... c6 {[%clk 0:02:53.4]}
7. O-O {[%clk 0:02:50.2]} 7... Qa5 {[%clk 0:02:53.9]} 8. e4 {[%clk 0:02:50.2]}
8... Qh5 {[%clk 0:02:41.3]} 9. Ng5 {[%clk 0:02:49]} 9... Bg4 {[%clk 0:02:23.8]}
10. Qd3 {[%clk 0:02:32.2]} 10... h6 {[%clk 0:02:12.1]} 11. Nf3 {[%clk
0:02:21.9]} 11... Nbd7 {[%clk 0:02:08.7]} 12. Ne1 {[%clk 0:02:17]} 12... e5
{[%clk 0:02:03.6]} 13. f3 {[%clk 0:02:12.2]} 13... exd4 {[%clk 0:01:52.5]} 14.
fxg4 {[%clk 0:02:07.1]} 14... Nxg4 {[%clk 0:01:46.1]} 15. h3 {[%clk 0:02:06.5]}
15... dxc3 {[%clk 0:01:10.7]} 16. hxg4 {[%clk 0:02:04.9]} 16... cxb2 {[%clk
0:01:10.4]} 17. Bxb2 {[%clk 0:02:01.3]} 17... Qc5+ {[%clk 0:01:08.2]} 18. Kh2
{[%clk 0:01:58.2]} 18... Bxb2 {[%clk 0:01:07.2]} 19. Rb1 {[%clk 0:01:58.7]}
19... Ne5 {[%clk 0:01:00.5]} 20. Qc2 {[%clk 0:01:53.9]} 20... Nxg4+ {[%clk
0:00:55.5]} 21. Kh1 {[%clk 0:01:37.1]} 21... Qh5+ {[%clk 0:00:51.3]} 22. Bh3
{[%clk 0:01:35.7]} 22... Qxh3+ {[%clk 0:00:48.6]} 23. Kg1 {[%clk 0:01:35.5]}
23... Bd4+ {[%clk 0:00:45.5]} 24. Rf2 {[%clk 0:01:34.7]} 24... Nxf2 {[%clk
0:00:30.9]} 25. Nf3 {[%clk 0:01:30.5]} 25... Qxg3+ {[%clk 0:00:29.2]} 26. Kf1
{[%clk 0:01:30.1]} 26... Qxf3 {[%clk 0:00:28.1]} 27. Rxb7 {[%clk 0:01:29.1]}
27... Nd3+ {[%clk 0:00:24.7]} 0-1

[Event "*** Titled Tuesday Blitz"]
[Site "Chess.com"]
[Date "2021.04.27"]
[Round "5"]
[White "Dyadya81"]
[Black "Kozok"]
[Result "1-0"]
[WhiteElo "2721"]
[BlackElo "2531"]
[TimeControl "180+1"]
[EndTime "10:54:22 PDT"]
[Termination "Dyadya81 won by resignation"]

1. e4 {[%clk 0:03:00.9]} 1... c5 {[%clk 0:02:58]} 2. Nf3 {[%clk 0:02:59.9]} 2...
e6 {[%clk 0:02:58.3]} 3. d4 {[%clk 0:03:00]} 3... cxd4 {[%clk 0:02:59.2]} 4.
Nxd4 {[%clk 0:03:00.7]} 4... Nf6 {[%clk 0:02:59.8]} 5. Nc3 {[%clk 0:03:01.1]}
5... Nc6 {[%clk 0:02:59.1]} 6. Nxc6 {[%clk 0:03:00.2]} 6... bxc6 {[%clk
0:02:59.5]} 7. Bd3 {[%clk 0:03:00.8]} 7... d5 {[%clk 0:02:59.5]} 8. O-O {[%clk
0:02:58.7]} 8... Be7 {[%clk 0:02:49.3]} 9. Qf3 {[%clk 0:02:58]} 9... e5 {[%clk
0:02:15.1]} 10. Bg5 {[%clk 0:02:43.7]} 10... Be6 {[%clk 0:02:10.7]} 11. exd5
{[%clk 0:02:31.8]} 11... Nxd5 {[%clk 0:02:06.8]} 12. Bxe7 {[%clk 0:02:25.7]}
12... Qxe7 {[%clk 0:02:07.3]} 13. Rfe1 {[%clk 0:02:23]} 13... f6 {[%clk
0:02:00]} 14. Qe4 {[%clk 0:01:59.3]} 14... g6 {[%clk 0:01:47.4]} 15. Bc4 {[%clk
0:01:49.4]} 15... Rd8 {[%clk 0:01:38.3]} 16. Rad1 {[%clk 0:01:37.9]} 16... Qf7
{[%clk 0:01:35.3]} 17. Bxd5 {[%clk 0:01:13.5]} 17... Bxd5 {[%clk 0:01:31.4]} 18.
Qb4 {[%clk 0:01:10.8]} 18... Qe7 {[%clk 0:01:23.5]} 19. Qxe7+ {[%clk 0:01:10.6]}
19... Kxe7 {[%clk 0:01:23.8]} 20. f4 {[%clk 0:01:11.3]} 20... Ke6 {[%clk
0:01:23.8]} 21. fxe5 {[%clk 0:01:00.7]} 21... fxe5 {[%clk 0:01:24]} 22. Na4
{[%clk 0:01:01.5]} 22... Bxa2 {[%clk 0:01:11.1]} 23. b3 {[%clk 0:00:56.8]} 23...
Rxd1 {[%clk 0:01:06.6]} 24. Rxd1 {[%clk 0:00:56.6]} 24... Rb8 {[%clk 0:01:06.9]}
25. Ra1 {[%clk 0:00:55.3]} 25... Bxb3 {[%clk 0:01:06.4]} 26. Nc5+ {[%clk
0:00:51.8]} 26... Kd5 {[%clk 0:01:04.5]} 27. Nxb3 {[%clk 0:00:52.4]} 27... Rb7
{[%clk 0:01:02.4]} 28. Rd1+ {[%clk 0:00:52.6]} 28... Kc4 {[%clk 0:01:02.4]} 29.
Na5+ {[%clk 0:00:50.9]} 1-0

[Event "*** Titled Tuesday Blitz"]
[Site "Chess.com"]
[Date "2021.04.27"]
[Round "5"]
[White "VladimirBugayev"]
[Black "c_r_e_e_p_e_r"]
[Result "0-1"]
[WhiteElo "2246"]
[BlackElo "2394"]
[TimeControl "180+1"]
[EndTime "10:54:22 PDT"]
[Termination "c_r_e_e_p_e_r won by resignation"]

1. e4 {[%clk 0:03:00.9]} 1... c5 {[%clk 0:03:00]} 2. Nc3 {[%clk 0:03:00]} 2...
e6 {[%clk 0:03:00]} 3. f4 {[%clk 0:02:59.2]} 3... a6 {[%clk 0:03:00.1]} 4. Nf3
{[%clk 0:02:58.7]} 4... b5 {[%clk 0:03:00.6]} 5. g3 {[%clk 0:02:55]} 5... Bb7
{[%clk 0:03:00.9]} 6. Bg2 {[%clk 0:02:55.4]} 6... b4 {[%clk 0:03:00.6]} 7. Ne2
{[%clk 0:02:54.3]} 7... Bxe4 {[%clk 0:03:01.2]} 8. O-O {[%clk 0:02:54.5]} 8...
Nf6 {[%clk 0:03:00.2]} 9. d4 {[%clk 0:02:54.5]} 9... Bb7 {[%clk 0:02:52.4]} 10.
c3 {[%clk 0:02:46.7]} 10... a5 {[%clk 0:02:51.4]} 11. h3 {[%clk 0:02:42.4]}
11... Be7 {[%clk 0:02:50.3]} 12. Be3 {[%clk 0:02:42.4]} 12... Na6 {[%clk
0:02:48.4]} 13. g4 {[%clk 0:02:29.1]} 13... O-O {[%clk 0:02:47.6]} 14. Ng3
{[%clk 0:02:28.6]} 14... bxc3 {[%clk 0:02:44.7]} 15. bxc3 {[%clk 0:02:28.2]}
15... cxd4 {[%clk 0:02:42.1]} 16. cxd4 {[%clk 0:02:16.7]} 16... Nd5 {[%clk
0:02:40.3]} 17. Bd2 {[%clk 0:02:16.7]} 17... d6 {[%clk 0:02:39]} 18. Qe1 {[%clk
0:02:06]} 18... Nab4 {[%clk 0:02:38]} 19. Ne4 {[%clk 0:02:00.1]} 19... Nc2
{[%clk 0:02:36.1]} 20. Qg3 {[%clk 0:02:00.5]} 20... Nxa1 {[%clk 0:02:36.3]} 21.
Rxa1 {[%clk 0:02:01.1]} 21... Qb6 {[%clk 0:02:33.9]} 22. Kh2 {[%clk 0:01:48.7]}
22... Rfc8 {[%clk 0:02:32.8]} 23. Rf1 {[%clk 0:01:34]} 23... Rc2 {[%clk
0:02:31.8]} 24. Rf2 {[%clk 0:01:31.5]} 24... Rac8 {[%clk 0:02:29.9]} 25. a3
{[%clk 0:01:24.9]} 25... Nf6 {[%clk 0:02:08.9]} 26. Nfg5 {[%clk 0:01:17.2]}
26... h6 {[%clk 0:01:53.8]} 27. Nxf6+ {[%clk 0:01:09.3]} 27... Bxf6 {[%clk
0:01:54.2]} 28. Ne4 {[%clk 0:01:09.7]} 28... Bxd4 {[%clk 0:01:51.3]} 29. Re2
{[%clk 0:01:09.5]} 29... Bxe4 {[%clk 0:01:30.8]} 30. Bxe4 {[%clk 0:01:08.2]}
30... Rb2 {[%clk 0:01:22.8]} 31. Qd3 {[%clk 0:01:01.9]} 31... d5 {[%clk
0:01:14.9]} 32. Bg2 {[%clk 0:00:46.9]} 32... Rcc2 {[%clk 0:01:09.6]} 0-1

[Event "*** Titled Tuesday Blitz"]
[Site "Chess.com"]
[Date "2021.04.27"]
[Round "5"]
[White "LamaChampetre"]
[Black "annacramling"]
[Result "1-0"]
[WhiteElo "2213"]
[BlackElo "2072"]
[TimeControl "180+1"]
[EndTime "10:54:25 PDT"]
[Termination "LamaChampetre won by resignation"]

1. d4 {[%clk 0:03:00.9]} 1... Nf6 {[%clk 0:02:59.5]} 2. c4 {[%clk 0:03:00.5]}
2... e6 {[%clk 0:02:58.7]} 3. Nf3 {[%clk 0:02:59.9]} 3... d5 {[%clk 0:02:59.1]}
4. g3 {[%clk 0:02:58.4]} 4... Be7 {[%clk 0:02:58.7]} 5. Bg2 {[%clk 0:02:58.5]}
5... O-O {[%clk 0:02:57.1]} 6. O-O {[%clk 0:02:59]} 6... c6 {[%clk 0:02:50.6]}
7. Qc2 {[%clk 0:02:56.1]} 7... Nbd7 {[%clk 0:02:43.9]} 8. Nbd2 {[%clk
0:02:55.5]} 8... Re8 {[%clk 0:02:19]} 9. e4 {[%clk 0:02:54.5]} 9... dxe4 {[%clk
0:02:14]} 10. Nxe4 {[%clk 0:02:55.4]} 10... Nxe4 {[%clk 0:02:14.4]} 11. Qxe4
{[%clk 0:02:56.2]} 11... c5 {[%clk 0:01:46.7]} 12. b3 {[%clk 0:02:40.9]} 12...
cxd4 {[%clk 0:01:45.8]} 13. Nxd4 {[%clk 0:02:31.4]} 13... Nc5 {[%clk 0:01:44.3]}
14. Qe3 {[%clk 0:02:27.7]} 14... Bg5 {[%clk 0:01:22.5]} 15. Qxg5 {[%clk
0:02:14.4]} 15... Qxd4 {[%clk 0:01:21.7]} 16. Be3 {[%clk 0:02:13.5]} 16... Ne4
{[%clk 0:01:12.6]} 17. Qf4 {[%clk 0:01:55.4]} 17... Qxa1 {[%clk 0:00:30.2]} 18.
Rxa1 {[%clk 0:01:51.8]} 18... Nc3 {[%clk 0:00:31.1]} 19. Qf3 {[%clk 0:01:28]}
19... e5 {[%clk 0:00:18.6]} 20. Bd2 {[%clk 0:01:25.3]} 20... e4 {[%clk
0:00:04.1]} 21. Qxc3 {[%clk 0:01:23.9]} 1-0

[Event "*** Titled Tuesday Blitz"]
[Site "Chess.com"]
[Date "2021.04.27"]
[Round "5"]
[White "GelmanAlexander"]
[Black "K_A_S_T_O_R"]
[Result "0-1"]
[WhiteElo "2597"]
[BlackElo "2781"]
[TimeControl "180+1"]
[EndTime "10:54:30 PDT"]
[Termination "K_A_S_T_O_R won by resignation"]

1. d4 {[%clk 0:03:00.9]} 1... Nf6 {[%clk 0:02:59.1]} 2. Nc3 {[%clk 0:03:00.4]}
2... d6 {[%clk 0:02:58.6]} 3. e4 {[%clk 0:03:00.2]} 3... Nbd7 {[%clk 0:02:58.7]}
4. g4 {[%clk 0:02:57.9]} 4... h6 {[%clk 0:02:56.9]} 5. h3 {[%clk 0:02:51.7]}
5... e5 {[%clk 0:02:55]} 6. Nge2 {[%clk 0:02:49.6]} 6... c6 {[%clk 0:02:52.5]}
7. Bg2 {[%clk 0:02:45.5]} 7... b5 {[%clk 0:02:51.5]} 8. Ng3 {[%clk 0:02:36]}
8... b4 {[%clk 0:02:47.9]} 9. Nce2 {[%clk 0:02:35.5]} 9... a5 {[%clk 0:02:48.3]}
10. O-O {[%clk 0:02:34.1]} 10... Ba6 {[%clk 0:02:47.3]} 11. f4 {[%clk 0:02:34]}
11... exd4 {[%clk 0:02:34.6]} 12. Qxd4 {[%clk 0:02:29.8]} 12... d5 {[%clk
0:02:34.2]} 13. Be3 {[%clk 0:02:14.8]} 13... Bc5 {[%clk 0:02:28.1]} 14. Qd2
{[%clk 0:02:14.4]} 14... Qb6 {[%clk 0:02:26.9]} 15. Bxc5 {[%clk 0:02:13]} 15...
Qxc5+ {[%clk 0:02:25.3]} 16. Kh1 {[%clk 0:02:13.1]} 16... dxe4 {[%clk
0:02:23.5]} 17. Rae1 {[%clk 0:01:18.6]} 17... O-O {[%clk 0:02:21.5]} 18. g5
{[%clk 0:01:17.3]} 18... hxg5 {[%clk 0:02:13.8]} 19. fxg5 {[%clk 0:01:17]} 19...
e3 {[%clk 0:02:12.6]} 20. Qc1 {[%clk 0:01:12.6]} 20... Nd5 {[%clk 0:02:12]} 21.
Rf5 {[%clk 0:01:03.4]} 21... g6 {[%clk 0:02:08.5]} 22. Rff1 {[%clk 0:00:17.3]}
22... Qe7 {[%clk 0:02:03.3]} 23. c4 {[%clk 0:00:16.1]} 23... bxc3 {[%clk
0:02:02.7]} 24. bxc3 {[%clk 0:00:16.3]} 24... Qxg5 {[%clk 0:02:02.5]} 25. Ne4
{[%clk 0:00:16.5]} 25... Qe5 {[%clk 0:02:01.6]} 26. c4 {[%clk 0:00:17.1]} 26...
N5f6 {[%clk 0:01:59.9]} 27. Qxe3 {[%clk 0:00:16.6]} 27... Nxe4 {[%clk
0:01:55.8]} 28. Bxe4 {[%clk 0:00:16.6]} 28... Rae8 {[%clk 0:01:51.7]} 29. Ng3
{[%clk 0:00:12.8]} 29... Bxc4 {[%clk 0:01:46.8]} 30. Rf3 {[%clk 0:00:11.5]}
30... Bd5 {[%clk 0:01:44.6]} 31. Qd3 {[%clk 0:00:10.7]} 31... Nc5 {[%clk
0:01:42.8]} 32. Qc2 {[%clk 0:00:08.1]} 32... Nxe4 {[%clk 0:01:42.8]} 0-1

[Event "*** Titled Tuesday Blitz"]
[Site "Chess.com"]
[Date "2021.04.27"]
[Round "5"]
[White "MarkoPe"]
[Black "martinique24"]
[Result "0-1"]
[WhiteElo "2256"]
[BlackElo "2423"]
[TimeControl "180+1"]
[EndTime "10:54:33 PDT"]
[Termination "martinique24 won by checkmate"]

1. e4 {[%clk 0:02:58.7]} 1... c6 {[%clk 0:02:25.7]} 2. d4 {[%clk 0:02:58.3]}
2... d5 {[%clk 0:02:25]} 3. e5 {[%clk 0:02:58.9]} 3... Bf5 {[%clk 0:02:21.7]} 4.
h4 {[%clk 0:02:59.2]} 4... h6 {[%clk 0:02:19.7]} 5. g4 {[%clk 0:02:58.2]} 5...
Bd7 {[%clk 0:02:18.4]} 6. f4 {[%clk 0:02:55.8]} 6... c5 {[%clk 0:02:14.6]} 7. c3
{[%clk 0:02:54.6]} 7... Nc6 {[%clk 0:02:14.4]} 8. Be3 {[%clk 0:02:54.1]} 8... h5
{[%clk 0:02:08.4]} 9. f5 {[%clk 0:02:33.5]} 9... Qb6 {[%clk 0:02:02.6]} 10. b3
{[%clk 0:01:08.7]} 10... cxd4 {[%clk 0:01:57.4]} 11. cxd4 {[%clk 0:01:09.6]}
11... Nxe5 {[%clk 0:01:55.3]} 12. dxe5 {[%clk 0:01:00.5]} 12... Qxe3+ {[%clk
0:01:54.2]} 13. Be2 {[%clk 0:00:59.7]} 13... hxg4 {[%clk 0:01:52.3]} 14. Qxd5
{[%clk 0:00:53.3]} 14... Bc6 {[%clk 0:01:49.5]} 15. Qa5 {[%clk 0:00:12.8]} 15...
Bxh1 {[%clk 0:01:47.3]} 16. Na3 {[%clk 0:00:09.3]} 16... Qxg1+ {[%clk
0:01:43.3]} 17. Kd2 {[%clk 0:00:09.7]} 17... Qd4+ {[%clk 0:01:42.8]} 18. Bd3
{[%clk 0:00:09.1]} 18... Qxa1 {[%clk 0:01:40.7]} 19. Bb5+ {[%clk 0:00:05.9]}
19... Bc6 {[%clk 0:01:40.6]} 20. Bxc6+ {[%clk 0:00:06.4]} 20... bxc6 {[%clk
0:01:41.5]} 21. Qc7 {[%clk 0:00:06.8]} 21... Qd4+ {[%clk 0:01:40.7]} 22. Kc2
{[%clk 0:00:07]} 22... Qd7 {[%clk 0:01:39.6]} 23. Qa5 {[%clk 0:00:06.2]} 23...
Rd8 {[%clk 0:01:39.6]} 24. Nc4 {[%clk 0:00:06.1]} 24... Rxh4 {[%clk 0:01:36.5]}
25. e6 {[%clk 0:00:03.4]} 25... Rh2+ {[%clk 0:01:36.1]} 26. Kb1 {[%clk
0:00:03.8]} 26... Qd1# {[%clk 0:01:35.8]} 0-1

[Event "*** Titled Tuesday Blitz"]
[Site "Chess.com"]
[Date "2021.04.27"]
[Round "5"]
[White "miragha_yev"]
[Black "MITerryble"]
[Result "0-1"]
[WhiteElo "2740"]
[BlackElo "2897"]
[TimeControl "180+1"]
[EndTime "10:54:34 PDT"]
[Termination "MITerryble won by resignation"]

1. c4 {[%clk 0:03:00.9]} 1... e5 {[%clk 0:02:59.7]} 2. Nc3 {[%clk 0:02:58.2]}
2... Nc6 {[%clk 0:02:58.9]} 3. Nf3 {[%clk 0:02:57.4]} 3... f5 {[%clk 0:02:58.6]}
4. d4 {[%clk 0:02:57]} 4... e4 {[%clk 0:02:58.7]} 5. Ng5 {[%clk 0:02:55.5]} 5...
h6 {[%clk 0:02:58.3]} 6. Nh3 {[%clk 0:02:54.8]} 6... g5 {[%clk 0:02:58.8]} 7. g3
{[%clk 0:02:49.6]} 7... Bg7 {[%clk 0:02:58.4]} 8. e3 {[%clk 0:02:44.3]} 8... Nf6
{[%clk 0:02:58.1]} 9. Bg2 {[%clk 0:02:44.3]} 9... O-O {[%clk 0:02:57.8]} 10. O-O
{[%clk 0:02:44.6]} 10... d6 {[%clk 0:02:58.2]} 11. Rb1 {[%clk 0:02:40.7]} 11...
a5 {[%clk 0:02:57.4]} 12. a3 {[%clk 0:02:40.5]} 12... Ne7 {[%clk 0:02:50.7]} 13.
b4 {[%clk 0:02:38.1]} 13... axb4 {[%clk 0:02:51.6]} 14. axb4 {[%clk 0:02:39]}
14... d5 {[%clk 0:02:47.2]} 15. cxd5 {[%clk 0:02:30.4]} 15... Nexd5 {[%clk
0:02:48.1]} 16. Nxd5 {[%clk 0:02:22.4]} 16... Nxd5 {[%clk 0:02:49]} 17. Bd2
{[%clk 0:02:22.8]} 17... Be6 {[%clk 0:02:35.2]} 18. Kh1 {[%clk 0:02:07]} 18...
Qd7 {[%clk 0:01:54.7]} 19. Ng1 {[%clk 0:02:04.7]} 19... b5 {[%clk 0:01:48.1]}
20. Ne2 {[%clk 0:02:03]} 20... Nb6 {[%clk 0:01:45.2]} 21. f3 {[%clk 0:01:56.7]}
21... exf3 {[%clk 0:01:44.7]} 22. Bxf3 {[%clk 0:01:57.6]} 22... Bd5 {[%clk
0:01:45.3]} 23. Nc3 {[%clk 0:01:55.7]} 23... Bxf3+ {[%clk 0:01:40.9]} 24. Qxf3
{[%clk 0:01:56.6]} 24... c6 {[%clk 0:01:40.3]} 25. Ra1 {[%clk 0:01:49.2]} 25...
Rxa1 {[%clk 0:01:23.4]} 26. Rxa1 {[%clk 0:01:50.1]} 26... Nc4 {[%clk 0:01:24.1]}
27. Bc1 {[%clk 0:01:48]} 27... f4 {[%clk 0:01:22]} 28. gxf4 {[%clk 0:01:28]}
28... gxf4 {[%clk 0:01:21]} 29. exf4 {[%clk 0:01:15.8]} 29... Qxd4 {[%clk
0:01:17.7]} 30. Qxc6 {[%clk 0:00:41.1]} 30... Qxc3 {[%clk 0:01:16.9]} 31. Qd5+
{[%clk 0:00:36.1]} 31... Kh8 {[%clk 0:01:16.1]} 0-1

[Event "*** Titled Tuesday Blitz"]
[Site "Chess.com"]
[Date "2021.04.27"]
[Round "5"]
[White "Konavets"]
[Black "CSB7"]
[Result "1-0"]
[WhiteElo "2943"]
[BlackElo "2740"]
[TimeControl "180+1"]
[EndTime "10:54:38 PDT"]
[Termination "Konavets won by checkmate"]

1. e4 {[%clk 0:03:00.9]} 1... c6 {[%clk 0:02:59.8]} 2. d4 {[%clk 0:02:58.4]}
2... d5 {[%clk 0:02:59.7]} 3. Nc3 {[%clk 0:02:59.1]} 3... dxe4 {[%clk
0:02:59.5]} 4. Nxe4 {[%clk 0:03:00]} 4... Bf5 {[%clk 0:02:58]} 5. Ng3 {[%clk
0:02:59.9]} 5... Bg6 {[%clk 0:02:58.3]} 6. h4 {[%clk 0:03:00.6]} 6... h6 {[%clk
0:02:58.3]} 7. Nf3 {[%clk 0:03:01.3]} 7... e6 {[%clk 0:02:54.3]} 8. Ne5 {[%clk
0:03:01.2]} 8... Bh7 {[%clk 0:02:54.1]} 9. Bd3 {[%clk 0:03:01.9]} 9... Bxd3
{[%clk 0:02:53]} 10. Qxd3 {[%clk 0:03:02.8]} 10... Nd7 {[%clk 0:02:53]} 11. f4
{[%clk 0:03:02.8]} 11... Be7 {[%clk 0:02:50.4]} 12. Nh5 {[%clk 0:03:02.5]} 12...
Ngf6 {[%clk 0:02:25.1]} 13. Nxg7+ {[%clk 0:02:53.2]} 13... Kf8 {[%clk
0:02:25.2]} 14. Nxe6+ {[%clk 0:02:51.7]} 14... fxe6 {[%clk 0:02:26.1]} 15. Ng6+
{[%clk 0:02:52.2]} 15... Kg7 {[%clk 0:02:05.9]} 16. Bd2 {[%clk 0:02:53.1]} 16...
h5 {[%clk 0:01:45]} 17. Nxh8 {[%clk 0:02:48.5]} 17... Qxh8 {[%clk 0:01:33.9]}
18. O-O-O {[%clk 0:02:48.4]} 18... Qh7 {[%clk 0:01:22.1]} 19. Qb3 {[%clk
0:02:48.4]} 19... Qf5 {[%clk 0:01:14.4]} 20. Rhe1 {[%clk 0:02:35.3]} 20... Kf7
{[%clk 0:01:10.3]} 21. Qxb7 {[%clk 0:02:25]} 21... Rg8 {[%clk 0:01:06.6]} 22.
Qxc6 {[%clk 0:02:23.8]} 22... Qd5 {[%clk 0:01:00.2]} 23. Qxd5 {[%clk 0:02:17.8]}
23... exd5 {[%clk 0:01:01.1]} 24. Re2 {[%clk 0:02:08]} 24... Ne4 {[%clk
0:00:54.2]} 25. Be1 {[%clk 0:02:07.9]} 25... Rg4 {[%clk 0:00:44.8]} 26. c4
{[%clk 0:02:06.1]} 26... Bxh4 {[%clk 0:00:36.5]} 27. Bxh4 {[%clk 0:02:04.5]}
27... Rxh4 {[%clk 0:00:37.4]} 28. c5 {[%clk 0:02:04.8]} 28... Rxf4 {[%clk
0:00:27.6]} 29. Kc2 {[%clk 0:02:04.9]} 29... Nb8 {[%clk 0:00:22.3]} 30. b4
{[%clk 0:02:04.8]} 30... a6 {[%clk 0:00:20.4]} 31. a4 {[%clk 0:02:04.6]} 31...
Ke6 {[%clk 0:00:10.7]} 32. b5 {[%clk 0:02:04.7]} 32... axb5 {[%clk 0:00:11]} 33.
axb5 {[%clk 0:02:05.6]} 33... Kd7 {[%clk 0:00:08.4]} 34. Ra1 {[%clk 0:02:05.6]}
34... Rg4 {[%clk 0:00:02.1]} 35. Ra7+ {[%clk 0:02:04.2]} 35... Kc8 {[%clk
0:00:02.4]} 36. Kb3 {[%clk 0:02:03.3]} 36... Nd7 {[%clk 0:00:01.9]} 37. Rea2
{[%clk 0:01:53.5]} 37... h4 {[%clk 0:00:01.6]} 38. Ra8+ {[%clk 0:01:52.8]} 38...
Kc7 {[%clk 0:00:02]} 39. R2a7# {[%clk 0:01:52.5]} 1-0